[Event "*** Titled Tuesday Blitz"]
[Site "Chess.com"]
[Date "2020.05.19"]
[Round "6"]
[White "Andreikka"]
[Black "ChessBitl"]
[Result "1-0"]
[WhiteElo "2945"]
[BlackElo "2348"]
[TimeControl "180+1"]
[EndTime "13:07:47 PDT"]
[Termination "Andreikka won by resignation"]

1. c4 {[%clk 0:02:57.3]} 1... e5 {[%clk 0:02:57.9]} 2. Nc3 {[%clk 0:02:57]} 2...
f5 {[%clk 0:02:57.7]} 3. g3 {[%clk 0:02:56.1]} 3... Nf6 {[%clk 0:02:57.9]} 4. d4
{[%clk 0:02:56.6]} 4... d6 {[%clk 0:02:56.1]} 5. Bh3 {[%clk 0:02:56]} 5... Nc6
{[%clk 0:02:53.3]} 6. Nf3 {[%clk 0:02:51.4]} 6... Be7 {[%clk 0:02:52.4]} 7. d5
{[%clk 0:02:32.9]} 7... Nb8 {[%clk 0:02:48.7]} 8. e4 {[%clk 0:02:32.5]} 8...
fxe4 {[%clk 0:02:41.7]} 9. Bxc8 {[%clk 0:02:30.2]} 9... Qxc8 {[%clk 0:02:42]}
10. Ng5 {[%clk 0:02:30.2]} 10... O-O {[%clk 0:02:30.9]} 11. O-O {[%clk
0:02:28.2]} 11... Na6 {[%clk 0:02:26.8]} 12. Ngxe4 {[%clk 0:02:23.2]} 12... Nxe4
{[%clk 0:02:23.1]} 13. Nxe4 {[%clk 0:02:23]} 13... Nc5 {[%clk 0:02:22.2]} 14.
Nxc5 {[%clk 0:02:22]} 14... dxc5 {[%clk 0:02:22.3]} 15. Qd3 {[%clk 0:02:21.3]}
15... Qg4 {[%clk 0:02:10]} 16. Re1 {[%clk 0:02:13.4]} 16... Bd6 {[%clk
0:02:08.5]} 17. Qe4 {[%clk 0:02:13]} 17... Qxe4 {[%clk 0:01:58.9]} 18. Rxe4
{[%clk 0:02:12.3]} 18... Rf5 {[%clk 0:01:57.4]} 19. Be3 {[%clk 0:02:11.6]} 19...
Raf8 {[%clk 0:01:55.7]} 20. Kg2 {[%clk 0:02:12]} 20... g6 {[%clk 0:01:52.8]} 21.
a3 {[%clk 0:02:09.2]} 21... b6 {[%clk 0:01:49.9]} 22. b4 {[%clk 0:02:07.3]}
22... cxb4 {[%clk 0:01:46.3]} 23. axb4 {[%clk 0:02:07.3]} 23... Bxb4 {[%clk
0:01:46.7]} 24. Rxa7 {[%clk 0:02:07.1]} 24... Bd6 {[%clk 0:01:47]} 25. Kf1
{[%clk 0:02:01.6]} 25... Kg7 {[%clk 0:01:45.4]} 26. Ke2 {[%clk 0:02:01.8]} 26...
Rb8 {[%clk 0:01:39.2]} 27. f4 {[%clk 0:01:51.9]} 27... exf4 {[%clk 0:01:31.4]}
28. Bxf4 {[%clk 0:01:51.8]} 28... Bxf4 {[%clk 0:01:31.3]} 29. Rxf4 {[%clk
0:01:51.6]} 29... Rxf4 {[%clk 0:00:52.1]} 30. gxf4 {[%clk 0:01:52.5]} 30... Rc8
{[%clk 0:00:42.7]} 31. d6 {[%clk 0:01:52.4]} 31... Kf6 {[%clk 0:00:40.3]} 32.
Rxc7 {[%clk 0:01:43.7]} 32... Rd8 {[%clk 0:00:39.9]} 33. Rc6 {[%clk 0:01:41.3]}
33... Kf5 {[%clk 0:00:34.2]} 34. Rxb6 {[%clk 0:01:40]} 34... Rc8 {[%clk
0:00:34.4]} 35. d7 {[%clk 0:01:38.3]} 35... Rd8 {[%clk 0:00:31.8]} 36. Rd6
{[%clk 0:01:38]} 36... Kxf4 {[%clk 0:00:31.9]} 37. c5 {[%clk 0:01:37.3]} 37...
Ke5 {[%clk 0:00:32.4]} 38. h4 {[%clk 0:01:37.4]} 38... h6 {[%clk 0:00:30.8]} 39.
Kf3 {[%clk 0:01:36.9]} 39... g5 {[%clk 0:00:30.8]} 40. hxg5 {[%clk 0:01:36.9]}
40... hxg5 {[%clk 0:00:30.7]} 41. Kg4 {[%clk 0:01:37.6]} 1-0

[Event "*** Titled Tuesday Blitz"]
[Site "Chess.com"]
[Date "2020.05.19"]
[Round "6"]
[White "MariaFominykh"]
[Black "grandcoach"]
[Result "0-1"]
[WhiteElo "2338"]
[BlackElo "2089"]
[TimeControl "180+1"]
[EndTime "13:07:47 PDT"]
[Termination "grandcoach won by resignation"]

1. d4 {[%clk 0:03:00.9]} 1... Nf6 {[%clk 0:02:59.1]} 2. Nf3 {[%clk 0:03:00.3]}
2... d5 {[%clk 0:02:58.4]} 3. c4 {[%clk 0:02:59.1]} 3... e6 {[%clk 0:02:57.3]}
4. Nc3 {[%clk 0:02:56.4]} 4... c5 {[%clk 0:02:55.7]} 5. cxd5 {[%clk 0:02:55.5]}
5... Nxd5 {[%clk 0:02:56.6]} 6. e4 {[%clk 0:02:46.1]} 6... Nxc3 {[%clk
0:02:56.4]} 7. bxc3 {[%clk 0:02:47]} 7... Nc6 {[%clk 0:02:54.3]} 8. Be2 {[%clk
0:02:42.4]} 8... cxd4 {[%clk 0:02:53.7]} 9. cxd4 {[%clk 0:02:37.5]} 9... Bb4+
{[%clk 0:02:54.3]} 10. Bd2 {[%clk 0:02:36.6]} 10... Bxd2+ {[%clk 0:02:54.9]} 11.
Qxd2 {[%clk 0:02:35.8]} 11... O-O {[%clk 0:02:55.4]} 12. O-O {[%clk 0:02:35.4]}
12... b6 {[%clk 0:02:55.7]} 13. Rac1 {[%clk 0:02:28.5]} 13... Bb7 {[%clk
0:02:56.1]} 14. Rfd1 {[%clk 0:02:18.1]} 14... Rc8 {[%clk 0:02:54.3]} 15. h3
{[%clk 0:02:07.8]} 15... Qd6 {[%clk 0:02:51.5]} 16. Qb2 {[%clk 0:01:48.4]} 16...
Rfd8 {[%clk 0:02:48.8]} 17. d5 {[%clk 0:01:41.9]} 17... exd5 {[%clk 0:02:44.8]}
18. Rxd5 {[%clk 0:01:39.8]} 18... Qe7 {[%clk 0:02:40.1]} 19. Rxd8+ {[%clk
0:01:23.7]} 19... Rxd8 {[%clk 0:02:36.9]} 20. Bc4 {[%clk 0:01:22.8]} 20... Na5
{[%clk 0:02:25]} 21. Bd5 {[%clk 0:00:33.3]} 21... Bxd5 {[%clk 0:02:21.8]} 22.
exd5 {[%clk 0:00:34.2]} 22... Rxd5 {[%clk 0:02:17.7]} 23. Rc8+ {[%clk
0:00:28.5]} 23... Rd8 {[%clk 0:02:17.4]} 24. Qe5 {[%clk 0:00:26.5]} 24... Qd7
{[%clk 0:02:02.1]} 25. Rc7 {[%clk 0:00:25.6]} 25... Qd1+ {[%clk 0:01:49.7]} 26.
Kh2 {[%clk 0:00:25.8]} 26... h6 {[%clk 0:01:40.7]} 27. Qe7 {[%clk 0:00:20.7]}
27... Qd5 {[%clk 0:01:32.8]} 28. Rxa7 {[%clk 0:00:18]} 28... Nc6 {[%clk
0:01:31.6]} 29. Qb7 {[%clk 0:00:15.5]} 29... Nxa7 {[%clk 0:01:30.9]} 30. Qxa7
{[%clk 0:00:15.6]} 30... b5 {[%clk 0:01:28.1]} 31. Qe3 {[%clk 0:00:14.9]} 31...
Qxa2 {[%clk 0:01:23]} 32. Qc5 {[%clk 0:00:13.9]} 32... Qd5 {[%clk 0:01:22.6]}
0-1

[Event "*** Titled Tuesday Blitz"]
[Site "Chess.com"]
[Date "2020.05.19"]
[Round "6"]
[White "Konek-Gorbunok"]
[Black "WhiteCapital80"]
[Result "0-1"]
[WhiteElo "2279"]
[BlackElo "2442"]
[TimeControl "180+1"]
[EndTime "13:07:49 PDT"]
[Termination "WhiteCapital80 won by resignation"]

1. d4 {[%clk 0:03:00.9]} 1... e6 {[%clk 0:03:00.3]} 2. Nf3 {[%clk 0:03:01]} 2...
Nf6 {[%clk 0:03:00.2]} 3. g3 {[%clk 0:03:01]} 3... d5 {[%clk 0:02:59.6]} 4. Bg2
{[%clk 0:03:01.3]} 4... Be7 {[%clk 0:03:00.2]} 5. O-O {[%clk 0:03:01.8]} 5...
O-O {[%clk 0:03:00.8]} 6. c4 {[%clk 0:03:02.3]} 6... dxc4 {[%clk 0:03:01.3]} 7.
Ne5 {[%clk 0:03:02.5]} 7... Nc6 {[%clk 0:03:01.1]} 8. Bxc6 {[%clk 0:03:02.6]}
8... bxc6 {[%clk 0:03:00.9]} 9. Nxc6 {[%clk 0:03:03.5]} 9... Qe8 {[%clk
0:03:01.1]} 10. Nxe7+ {[%clk 0:03:04.4]} 10... Qxe7 {[%clk 0:03:01.4]} 11. Qa4
{[%clk 0:03:05.2]} 11... e5 {[%clk 0:03:01.3]} 12. d5 {[%clk 0:02:54]} 12...
Nxd5 {[%clk 0:02:55.2]} 13. Qxc4 {[%clk 0:02:51.6]} 13... Rd8 {[%clk 0:02:41]}
14. e4 {[%clk 0:02:20.7]} 14... Nb4 {[%clk 0:02:31.7]} 15. a3 {[%clk 0:01:53.5]}
15... Ba6 {[%clk 0:02:23.2]} 16. Qxb4 {[%clk 0:01:20.7]} 16... Qxb4 {[%clk
0:02:22.1]} 17. axb4 {[%clk 0:01:21]} 17... Bxf1 {[%clk 0:02:22.1]} 18. Nc3
{[%clk 0:01:20.2]} 18... Bh3 {[%clk 0:02:15.5]} 19. Be3 {[%clk 0:01:16.6]} 19...
c6 {[%clk 0:02:10.6]} 20. f3 {[%clk 0:01:11.9]} 20... Be6 {[%clk 0:02:06.1]} 21.
Ra6 {[%clk 0:00:52.7]} 21... Rdb8 {[%clk 0:01:52.2]} 22. Bc5 {[%clk 0:00:49.4]}
22... Bd7 {[%clk 0:01:49.8]} 23. Kf2 {[%clk 0:00:45.5]} 23... f6 {[%clk
0:01:45]} 24. Ke3 {[%clk 0:00:45.2]} 24... Kf7 {[%clk 0:01:40.5]} 25. Nb1 {[%clk
0:00:36.7]} 25... Rc8 {[%clk 0:01:25.6]} 26. Nd2 {[%clk 0:00:34.2]} 26... Be6
{[%clk 0:01:25.5]} 27. Kd3 {[%clk 0:00:25.9]} 27... Rd8+ {[%clk 0:01:24.9]} 28.
Kc3 {[%clk 0:00:25.7]} 28... Rd7 {[%clk 0:01:23.4]} 29. Rxc6 {[%clk 0:00:21.6]}
29... Rad8 {[%clk 0:01:22.5]} 30. Nb3 {[%clk 0:00:06.4]} 30... Rd3+ {[%clk
0:01:21.9]} 0-1

[Event "*** Titled Tuesday Blitz"]
[Site "Chess.com"]
[Date "2020.05.19"]
[Round "6"]
[White "Camels1981"]
[Black "DenisQ"]
[Result "0-1"]
[WhiteElo "2345"]
[BlackElo "2556"]
[TimeControl "180+1"]
[EndTime "13:07:54 PDT"]
[Termination "DenisQ won by resignation"]

1. e4 {[%clk 0:03:00.9]} 1... e6 {[%clk 0:02:57.7]} 2. d4 {[%clk 0:03:00]} 2...
d5 {[%clk 0:02:57.6]} 3. Nc3 {[%clk 0:03:00.6]} 3... dxe4 {[%clk 0:02:57.5]} 4.
Nxe4 {[%clk 0:03:00.2]} 4... Bd7 {[%clk 0:02:57.8]} 5. Nf3 {[%clk 0:02:57.7]}
5... Bc6 {[%clk 0:02:57.9]} 6. Ng3 {[%clk 0:02:58.2]} 6... Nd7 {[%clk
0:02:57.1]} 7. Bd3 {[%clk 0:02:56.5]} 7... Ngf6 {[%clk 0:02:56.6]} 8. O-O {[%clk
0:02:56.4]} 8... Be7 {[%clk 0:02:53.7]} 9. b3 {[%clk 0:02:56.9]} 9... O-O {[%clk
0:02:52.8]} 10. Bb2 {[%clk 0:02:57.4]} 10... b6 {[%clk 0:02:49.4]} 11. c4 {[%clk
0:02:57]} 11... Bb7 {[%clk 0:02:48.9]} 12. Qe2 {[%clk 0:02:55.9]} 12... c5
{[%clk 0:02:48.4]} 13. Rfd1 {[%clk 0:02:56.2]} 13... cxd4 {[%clk 0:02:43.5]} 14.
Nxd4 {[%clk 0:02:52.4]} 14... Qc7 {[%clk 0:02:36.4]} 15. Nb5 {[%clk 0:02:47.6]}
15... Qf4 {[%clk 0:02:22.8]} 16. Rac1 {[%clk 0:01:33.8]} 16... Rfd8 {[%clk
0:02:14.7]} 17. f3 {[%clk 0:01:33.5]} 17... a6 {[%clk 0:02:06.8]} 18. Nd4 {[%clk
0:01:30.9]} 18... Nc5 {[%clk 0:02:01.5]} 19. Bb1 {[%clk 0:01:30.7]} 19... Rd7
{[%clk 0:01:57.9]} 20. Nc2 {[%clk 0:01:22.9]} 20... Rad8 {[%clk 0:01:49.8]} 21.
Ne3 {[%clk 0:01:22.8]} 21... h5 {[%clk 0:01:39.1]} 22. Rxd7 {[%clk 0:01:18.6]}
22... Rxd7 {[%clk 0:01:38.3]} 23. Rd1 {[%clk 0:01:19.2]} 23... h4 {[%clk
0:01:22.4]} 24. Ngf1 {[%clk 0:01:18.2]} 24... h3 {[%clk 0:01:13.7]} 25. Rxd7
{[%clk 0:01:17.6]} 25... Ncxd7 {[%clk 0:01:10.5]} 26. g4 {[%clk 0:00:27.6]}
26... Bxf3 {[%clk 0:01:01]} 27. Qf2 {[%clk 0:00:26.9]} 27... Nxg4 {[%clk
0:00:53.5]} 28. Nxg4 {[%clk 0:00:25]} 28... Qxg4+ {[%clk 0:00:53.5]} 29. Ng3
{[%clk 0:00:25.1]} 29... Bc5 {[%clk 0:00:52.1]} 0-1

[Event "*** Titled Tuesday Blitz"]
[Site "Chess.com"]
[Date "2020.05.19"]
[Round "6"]
[White "Azatic"]
[Black "Quaternitychess"]
[Result "0-1"]
[WhiteElo "2620"]
[BlackElo "2800"]
[TimeControl "180+1"]
[EndTime "13:07:57 PDT"]
[Termination "Quaternitychess won on time"]

1. e4 {[%clk 0:03:00.9]} 1... d6 {[%clk 0:02:57]} 2. d4 {[%clk 0:03:00.7]} 2...
Nf6 {[%clk 0:02:57.7]} 3. Nc3 {[%clk 0:03:00.9]} 3... Nbd7 {[%clk 0:02:58.3]} 4.
Nge2 {[%clk 0:03:00.6]} 4... e5 {[%clk 0:02:58.9]} 5. f3 {[%clk 0:03:00.6]} 5...
Be7 {[%clk 0:02:57.3]} 6. Be3 {[%clk 0:03:00.6]} 6... O-O {[%clk 0:02:58]} 7. g4
{[%clk 0:03:00.4]} 7... c6 {[%clk 0:02:58.6]} 8. Qd2 {[%clk 0:02:58.3]} 8... b5
{[%clk 0:02:57.9]} 9. Ng3 {[%clk 0:02:57.8]} 9... b4 {[%clk 0:02:57.2]} 10. Nce2
{[%clk 0:02:57.4]} 10... d5 {[%clk 0:02:56.9]} 11. g5 {[%clk 0:02:49.9]} 11...
Ne8 {[%clk 0:02:57]} 12. O-O-O {[%clk 0:02:39.5]} 12... Qa5 {[%clk 0:02:43.3]}
13. Kb1 {[%clk 0:02:37]} 13... Nb6 {[%clk 0:02:42.7]} 14. b3 {[%clk 0:02:23.9]}
14... Nc4 {[%clk 0:02:42.5]} 15. bxc4 {[%clk 0:02:22]} 15... dxc4 {[%clk
0:02:43.4]} 16. Qe1 {[%clk 0:01:57.6]} 16... c3 {[%clk 0:02:12.9]} 17. Bc1
{[%clk 0:01:54.6]} 17... Nd6 {[%clk 0:02:01.5]} 18. Rd3 {[%clk 0:00:42.7]} 18...
Rb8 {[%clk 0:01:45.9]} 19. h4 {[%clk 0:00:30.9]} 19... Rb6 {[%clk 0:01:32.5]}
20. Bh3 {[%clk 0:00:19.8]} 20... Bxh3 {[%clk 0:01:28.7]} 21. Rxh3 {[%clk
0:00:20.7]} 21... Rfb8 {[%clk 0:01:28.7]} 22. Ka1 {[%clk 0:00:16.7]} 22... Nc4
{[%clk 0:01:25.4]} 23. Nf5 {[%clk 0:00:12.3]} 23... Ra6 {[%clk 0:01:14.3]} 24.
Nxe7+ {[%clk 0:00:10.8]} 24... Kf8 {[%clk 0:01:14.6]} 25. Nxc3 {[%clk
0:00:02.4]} 25... bxc3 {[%clk 0:01:14.8]} 26. Ng6+ {[%clk 0:00:02.4]} 26... hxg6
{[%clk 0:01:14]} 27. a3 {[%clk 0:00:03.3]} 27... Qxa3+ {[%clk 0:01:13.7]} 0-1

[Event "*** Titled Tuesday Blitz"]
[Site "Chess.com"]
[Date "2020.05.19"]
[Round "6"]
[White "yarosavich"]
[Black "nabukatnezarr"]
[Result "0-1"]
[WhiteElo "2669"]
[BlackElo "2523"]
[TimeControl "180+1"]
[EndTime "13:07:58 PDT"]
[Termination "nabukatnezarr won by resignation"]

1. d4 {[%clk 0:03:00.4]} 1... e6 {[%clk 0:03:00.9]} 2. c4 {[%clk 0:02:58.3]}
2... Nf6 {[%clk 0:03:01]} 3. Nf3 {[%clk 0:02:58.4]} 3... c5 {[%clk 0:03:00.7]}
4. d5 {[%clk 0:02:58.1]} 4... d6 {[%clk 0:03:01.3]} 5. Nc3 {[%clk 0:02:58]} 5...
exd5 {[%clk 0:03:01.4]} 6. cxd5 {[%clk 0:02:58.5]} 6... g6 {[%clk 0:03:01.5]} 7.
h3 {[%clk 0:02:58.8]} 7... Qe7 {[%clk 0:02:51.3]} 8. Bf4 {[%clk 0:02:57.4]} 8...
Bg7 {[%clk 0:02:45.6]} 9. Nd2 {[%clk 0:02:45.2]} 9... O-O {[%clk 0:02:36.3]} 10.
Nc4 {[%clk 0:02:35.7]} 10... Ne8 {[%clk 0:02:20.5]} 11. e3 {[%clk 0:02:33.6]}
11... Nd7 {[%clk 0:02:18.1]} 12. Be2 {[%clk 0:02:20.6]} 12... Ne5 {[%clk
0:02:14.8]} 13. O-O {[%clk 0:02:13.7]} 13... Nxc4 {[%clk 0:02:10]} 14. Bxc4
{[%clk 0:02:13.7]} 14... Bd7 {[%clk 0:02:10.9]} 15. a4 {[%clk 0:02:11.3]} 15...
f5 {[%clk 0:02:09.8]} 16. a5 {[%clk 0:02:06.2]} 16... a6 {[%clk 0:02:05.8]} 17.
Qb3 {[%clk 0:01:58.4]} 17... Rb8 {[%clk 0:01:53.1]} 18. Bxa6 {[%clk 0:01:56.4]}
18... g5 {[%clk 0:01:52.1]} 19. Bh2 {[%clk 0:01:53.9]} 19... f4 {[%clk
0:01:52.7]} 20. Rae1 {[%clk 0:01:31.1]} 20... f3 {[%clk 0:01:51]} 21. Bg3 {[%clk
0:01:06.7]} 21... h5 {[%clk 0:01:14.3]} 22. Bxb7 {[%clk 0:00:50.3]} 22... h4
{[%clk 0:01:13.8]} 23. a6 {[%clk 0:00:46.7]} 23... fxg2 {[%clk 0:00:59.1]} 24.
Kxg2 {[%clk 0:00:45.8]} 24... hxg3 {[%clk 0:00:53.1]} 25. a7 {[%clk 0:00:40.5]}
25... Rxb7 {[%clk 0:00:51.4]} 26. a8=Q {[%clk 0:00:25.4]} 26... Rxb3 {[%clk
0:00:48.9]} 27. fxg3 {[%clk 0:00:26]} 27... Rxb2+ {[%clk 0:00:45.9]} 28. Kg1
{[%clk 0:00:26]} 0-1

[Event "*** Titled Tuesday Blitz"]
[Site "Chess.com"]
[Date "2020.05.19"]
[Round "6"]
[White "Alopekos"]
[Black "Oneofmyturns"]
[Result "1-0"]
[WhiteElo "2479"]
[BlackElo "2599"]
[TimeControl "180+1"]
[EndTime "13:07:58 PDT"]
[Termination "Alopekos won on time"]

1. e4 {[%clk 0:03:00.9]} 1... e5 {[%clk 0:02:59.9]} 2. Nf3 {[%clk 0:03:00.8]}
2... Nc6 {[%clk 0:03:00.3]} 3. Bb5 {[%clk 0:03:01.5]} 3... a6 {[%clk 0:03:00.4]}
4. Ba4 {[%clk 0:03:02.1]} 4... Nf6 {[%clk 0:03:00.7]} 5. O-O {[%clk 0:03:02.6]}
5... b5 {[%clk 0:03:01.3]} 6. Bb3 {[%clk 0:03:02.6]} 6... Bc5 {[%clk 0:03:01.9]}
7. a4 {[%clk 0:03:02.1]} 7... Rb8 {[%clk 0:03:01.6]} 8. Nxe5 {[%clk 0:03:02.3]}
8... Nxe5 {[%clk 0:03:01.7]} 9. d4 {[%clk 0:03:02.7]} 9... Bxd4 {[%clk
0:03:02.3]} 10. Qxd4 {[%clk 0:03:03.2]} 10... d6 {[%clk 0:03:03.2]} 11. f4
{[%clk 0:03:03.6]} 11... Nc6 {[%clk 0:03:02.1]} 12. Qc3 {[%clk 0:03:03.9]} 12...
Ne7 {[%clk 0:02:43]} 13. Qd3 {[%clk 0:03:00.5]} 13... O-O {[%clk 0:02:39.5]} 14.
Nc3 {[%clk 0:02:52.8]} 14... c5 {[%clk 0:02:31]} 15. axb5 {[%clk 0:02:45.8]}
15... axb5 {[%clk 0:02:30.9]} 16. Nxb5 {[%clk 0:02:45.2]} 16... Nxe4 {[%clk
0:02:31.2]} 17. Qxe4 {[%clk 0:02:45.1]} 17... Rxb5 {[%clk 0:02:30.6]} 18. Ra7
{[%clk 0:02:44.6]} 18... Nf5 {[%clk 0:02:04.7]} 19. Rxf7 {[%clk 0:02:35.4]}
19... Rxf7 {[%clk 0:01:11.1]} 20. Bxf7+ {[%clk 0:02:31.8]} 20... Kf8 {[%clk
0:00:56.1]} 21. Bc4 {[%clk 0:02:02.5]} 21... d5 {[%clk 0:00:14.6]} 22. Bxd5
{[%clk 0:01:59.1]} 22... Rb6 {[%clk 0:00:11.9]} 23. b3 {[%clk 0:01:17.3]} 23...
Rh6 {[%clk 0:00:12.2]} 24. Ba3 {[%clk 0:01:13.8]} 24... Qd6 {[%clk 0:00:06.2]}
25. Re1 {[%clk 0:01:07.2]} 25... Bd7 {[%clk 0:00:05.1]} 26. Qc4 {[%clk
0:01:02.5]} 1-0

[Event "*** Titled Tuesday Blitz"]
[Site "Chess.com"]
[Date "2020.05.19"]
[Round "6"]
[White "vinniethepooh"]
[Black "ZverevLev"]
[Result "0-1"]
[WhiteElo "2532"]
[BlackElo "2195"]
[TimeControl "180+1"]
[EndTime "13:08:01 PDT"]
[Termination "ZverevLev won by resignation"]

1. d4 {[%clk 0:03:00.9]} 1... Nf6 {[%clk 0:02:57.2]} 2. c4 {[%clk 0:02:59.9]}
2... e6 {[%clk 0:02:56.1]} 3. Nc3 {[%clk 0:03:00.2]} 3... Bb4 {[%clk 0:02:54.9]}
4. f3 {[%clk 0:03:00.2]} 4... c5 {[%clk 0:02:53.9]} 5. d5 {[%clk 0:03:00.2]}
5... b5 {[%clk 0:02:52.2]} 6. e4 {[%clk 0:03:00.1]} 6... O-O {[%clk 0:02:51.3]}
7. e5 {[%clk 0:03:00.5]} 7... Ne8 {[%clk 0:02:50.5]} 8. f4 {[%clk 0:03:00.9]}
8... d6 {[%clk 0:02:46.6]} 9. Nf3 {[%clk 0:03:01.1]} 9... Bb7 {[%clk 0:02:34.9]}
10. Bd3 {[%clk 0:02:57.2]} 10... h6 {[%clk 0:02:24.5]} 11. O-O {[%clk
0:02:53.5]} 11... bxc4 {[%clk 0:02:23.1]} 12. Bxc4 {[%clk 0:02:52]} 12... Bxc3
{[%clk 0:02:17.6]} 13. bxc3 {[%clk 0:02:42.9]} 13... exd5 {[%clk 0:02:14.8]} 14.
Bxd5 {[%clk 0:02:40.4]} 14... Bxd5 {[%clk 0:02:15.7]} 15. Qxd5 {[%clk
0:02:41.3]} 15... Nd7 {[%clk 0:02:15.8]} 16. Rd1 {[%clk 0:02:20.6]} 16... Rc8
{[%clk 0:02:10]} 17. exd6 {[%clk 0:02:17.4]} 17... Nef6 {[%clk 0:02:08.8]} 18.
Qf5 {[%clk 0:02:14]} 18... Qb6 {[%clk 0:02:06.4]} 19. Ne5 {[%clk 0:02:02.5]}
19... Rcd8 {[%clk 0:02:02.6]} 20. Be3 {[%clk 0:02:00.5]} 20... Nb8 {[%clk
0:01:58.6]} 21. Rd2 {[%clk 0:01:34.7]} 21... Qa6 {[%clk 0:01:49.4]} 22. Rad1
{[%clk 0:01:32.8]} 22... Nbd7 {[%clk 0:01:40.2]} 23. g4 {[%clk 0:01:23]} 23...
Qa4 {[%clk 0:01:30]} 24. g5 {[%clk 0:01:12.8]} 24... Nxe5 {[%clk 0:01:27.1]} 25.
fxe5 {[%clk 0:01:09.3]} 25... Ne4 {[%clk 0:01:24.9]} 26. Rg2 {[%clk 0:01:04.9]}
26... Qxd1+ {[%clk 0:01:20.7]} 27. Qf1 {[%clk 0:00:44.5]} 27... Qxf1+ {[%clk
0:01:17.8]} 28. Kxf1 {[%clk 0:00:45.4]} 28... hxg5 {[%clk 0:01:17.5]} 29. Bxg5
{[%clk 0:00:46.3]} 29... Nxg5 {[%clk 0:01:17]} 30. Rxg5 {[%clk 0:00:47.2]} 30...
f6 {[%clk 0:01:17.1]} 31. exf6 {[%clk 0:00:43.6]} 31... Rxf6+ {[%clk 0:01:15.7]}
32. Kg2 {[%clk 0:00:43.6]} 32... Rdxd6 {[%clk 0:01:13.7]} 33. Rxc5 {[%clk
0:00:44.1]} 33... Rc6 {[%clk 0:01:12.1]} 34. Ra5 {[%clk 0:00:44.6]} 34... Rxc3
{[%clk 0:01:11.4]} 35. Rxa7 {[%clk 0:00:45.2]} 35... Rc2+ {[%clk 0:01:11.1]} 36.
Kg3 {[%clk 0:00:44.7]} 36... Rg6+ {[%clk 0:01:10.9]} 37. Kf3 {[%clk 0:00:44.2]}
37... Rxh2 {[%clk 0:01:10.1]} 38. a4 {[%clk 0:00:44.8]} 38... Rhh6 {[%clk
0:01:09.4]} 39. Rb7 {[%clk 0:00:42.3]} 39... Ra6 {[%clk 0:01:07.8]} 0-1

[Event "*** Titled Tuesday Blitz"]
[Site "Chess.com"]
[Date "2020.05.19"]
[Round "6"]
[White "LimeInTheCoconut"]
[Black "Lagmantr"]
[Result "0-1"]
[WhiteElo "2502"]
[BlackElo "2675"]
[TimeControl "180+1"]
[EndTime "13:08:08 PDT"]
[Termination "Lagmantr won on time"]

1. d4 {[%clk 0:03:00.9]} 1... d5 {[%clk 0:02:59.4]} 2. c4 {[%clk 0:03:00.8]}
2... e6 {[%clk 0:02:58.4]} 3. Nc3 {[%clk 0:02:58.8]} 3... c6 {[%clk 0:02:57.9]}
4. Nf3 {[%clk 0:02:57]} 4... dxc4 {[%clk 0:02:57.5]} 5. a4 {[%clk 0:02:56.8]}
5... Bb4 {[%clk 0:02:54.5]} 6. e4 {[%clk 0:02:57]} 6... b5 {[%clk 0:02:54.5]} 7.
Bd2 {[%clk 0:02:53.4]} 7... a5 {[%clk 0:02:54.4]} 8. axb5 {[%clk 0:02:46.6]}
8... Bxc3 {[%clk 0:02:54]} 9. bxc3 {[%clk 0:02:43.1]} 9... cxb5 {[%clk
0:02:54.3]} 10. Be2 {[%clk 0:02:35.3]} 10... Nf6 {[%clk 0:02:52.5]} 11. e5
{[%clk 0:02:31.2]} 11... Nd5 {[%clk 0:02:51.7]} 12. O-O {[%clk 0:02:21]} 12...
Nc6 {[%clk 0:02:41.2]} 13. Qb1 {[%clk 0:02:08.7]} 13... Rb8 {[%clk 0:02:26.3]}
14. Qe4 {[%clk 0:01:59.4]} 14... Ba6 {[%clk 0:02:10.6]} 15. Qg4 {[%clk
0:01:56.6]} 15... g6 {[%clk 0:02:02.2]} 16. Ng5 {[%clk 0:01:48.8]} 16... b4
{[%clk 0:01:38.4]} 17. Ne4 {[%clk 0:01:33.1]} 17... bxc3 {[%clk 0:01:27.3]} 18.
Nd6+ {[%clk 0:01:29.7]} 18... Kf8 {[%clk 0:01:18]} 19. Bh6+ {[%clk 0:01:27.7]}
19... Kg8 {[%clk 0:01:16]} 20. Bf3 {[%clk 0:00:21.9]} 20... f5 {[%clk
0:01:11.9]} 21. Qg3 {[%clk 0:00:05.4]} 21... Nxd4 {[%clk 0:01:03.4]} 22. Rad1
{[%clk 0:00:03.8]} 22... Qb6 {[%clk 0:00:52.3]} 23. Bxd5 {[%clk 0:00:02.4]}
23... Ne2+ {[%clk 0:00:51]} 24. Kh1 {[%clk 0:00:01.3]} 24... Nxg3+ {[%clk
0:00:51.9]} 0-1